[Event "2nd Serbian League-Vojvodina 2023"]
[Site "Novi Sad"]
[Date "2023.11.08"]
[Round "9.6"]
[White "Sokic, Dragomir"]
[Black "Krejic, Igor"]
[Result "0-1"]
[ECO "C22"]
[WhiteElo "2095"]
[BlackElo "2128"]
[Annotator "RC"]
[PlyCount "88"]
[EventDate "2023.10.22"]
[EventType "team-tourn"]
[EventCountry "SRB"]
[SourceTitle "playchess.com"]
[Source "ChessBase"]
[SourceQuality "1"]
[TimeControl "40/5400+30:1800+30"]

1. e4 {[%emt 0:00:01]} e5 {[%emt 0:11:21]} 2. d4 {[%emt 0:00:23]} exd4 {[%emt 0:04:34]} 3. Qxd4 {[%emt 0:00:01]} Nc6 {[%emt 0:00:09]} 4. Qe3 {[%emt 0:00:01]} Nge7 {[%emt 0:02:03]} 5. Bc4 {[%emt 0:03:02]} d6 {[%emt 0:04:18]} 6. Qb3 {[%emt 0:01:48]} Ne5 {[%emt 0:01:54]} 7. Be2 {[%emt 0:01:56]} d5 {[%emt 0:10:35]} 8. f4 {[%emt 0:03:30]} N5c6 {[%emt 0:03:29]} 9. Nf3 {[%emt 0:06:42]} g6 {[%emt 0:07:04]} 10. exd5 {[%emt 0:06:55]} Nxd5 {[%emt 0:07:37]} 11. O-O {[%emt 0:02:55]} Bc5+ {[%emt 0:01:33]} 12. Kh1 {[%emt 1:09:16]} Nf6 {[%emt 0:02:46]} 13. Ne5 {[%emt 0:00:00]} O-O {[%emt 0:08:57]} 14. Nxc6 {[%emt 0:01:00]} bxc6 {[%emt 0:31:10]} 15. Nd2 {[%emt 0:00:00]} Bf5 {[%emt 0:00:00]} 16. c4 {[%emt 0:00:00]} a5 {[%emt 0:00:00]} 17. Qg3 {[%emt 0:00:00]} a4 {[%emt 0:00:00]} 18. Nf3 {[%emt 0:00:00]} Qe7 {[%emt 0:00:00]} 19. Ne5 {[%emt 0:00:00]} Ne4 {[%emt 0:00:00]} 20. Qe1 {[%emt 0:00:00]} a3 {[%emt 0:00:00]} 21. Bf3 {[%emt 0:00:00]} Nd6 {[%emt 0:00:00]} 22. g4 {[%emt 0:00:00]} Be6 {[%emt 0:01:03]} 23. b4 {[%emt 0:00:00]} Bd4 {[%emt 0:01:11]} 24. Nxc6 {[%emt 0:00:00]} Qf6 {[%emt 0:00:05]} 25. Nxd4 {[%emt 0:00:00]} Qxd4 {[%emt 0:00:05]} 26. Be3 {[%emt 0:00:00]} Qxc4 {[%emt 0:00:14]} 27. Bxa8 {[%emt 0:00:00]} Rxa8 {[%emt 0:00:24]} 28. h3 {[%emt 0:00:00]} Re8 {[%emt 0:01:17]} 29. Kh2 {[%emt 0:04:38]} Bd5 {[%emt 0:00:06]} 30. Qd2 {[%emt 0:02:02]} Qe4 {[%emt 0:01:27]} 31. Bc5 {[%emt 0:00:48]} Nc4 {[%emt 0:00:22]} 32. Qf2 {[%emt 0:00:01]} Rd8 {[%emt 0:01:51]} 33. Rfe1 {[%emt 0:00:23]} Qd3 {[%emt 0:00:19]} 34. Rad1 {[%emt 0:00:07]} Qc3 {[%emt 0:00:45]} 35. g5 {[%emt 0:00:58]} c6 {[%emt 0:00:16]} 36. b5 {[%emt 0:00:10]} Rc8 {[%emt 0:00:32]} 37. b6 {[%emt 0:00:10]} Be6 {[%emt 0:00:08]} 38. Qg3 {[%emt 0:01:17]} Qc2+ {[%emt 0:00:21]} 39. Qg2 {[%emt 0:00:01]} Qf5 {[%emt 0:00:19]} 40. Be3 {[%emt 0:00:58]} Rb8 {[%emt 0:00:59]} 41. Qxc6 {[%emt 0:31:05]} Qxh3+ {[%emt 0:30:09]} 42. Kg1 {[%emt 0:00:07]} Nxe3 {[%emt 0:00:06]} 43. Rd3 {[%emt 0:01:03]} Qg3+ {[%emt 0:00:10]} 44. Kh1 {[%emt 0:00:14]} Qxe1+ {[%emt 0:00:07]} 0-1

[Event "2nd Serbian League-Vojvodina 2023"]
[Site "Novi Sad"]
[Date "2023.11.08"]
[Round "9.7"]
[White "Bokros, Albert"]
[Black "Samani, Yamac"]
[Result "1/2-1/2"]
[ECO "C90"]
[WhiteElo "2447"]
[BlackElo "2349"]
[Annotator "RC"]
[PlyCount "49"]
[EventDate "2023.10.22"]
[EventType "team-tourn"]
[EventCountry "SRB"]
[SourceTitle "playchess.com"]
[Source "ChessBase"]
[SourceQuality "1"]
[TimeControl "40/5400+30:1800+30"]

1. e4 {[%emt 0:00:04]} e5 {[%emt 0:00:12]} 2. Nf3 {[%emt 0:00:13]} Nc6 {[%emt 0:00:07]} 3. Bb5 {[%emt 0:00:23]} a6 {[%emt 0:00:12]} 4. Ba4 {[%emt 0:00:06]} Nf6 {[%emt 0:00:07]} 5. d3 {[%emt 1:32:14]} b5 {[%emt 0:00:24]} 6. Bb3 {[%emt 0:00:00]} Be7 {[%emt 1:32:28]} 7. O-O {[%emt 0:00:00]} d6 {[%emt 0:00:00]} 8. c3 {[%emt 0:01:30]} O-O {[%emt 0:00:00]} 9. Re1 {[%emt 0:00:30]} Na5 {[%emt 0:00:00]} 10. Bc2 {[%emt 0:00:00]} c5 {[%emt 0:02:00]} 11. Nbd2 {[%emt 0:00:00]} Nc6 {[%emt 0:00:30]} 12. Nf1 {[%emt 0:01:30]} Be6 {[%emt 0:00:30]} 13. Ng3 {[%emt 0:00:30]} Qc7 {[%emt 0:00:30]} 14. Bb3 {[%emt 0:00:30]} h6 {[%emt 0:00:30]} 15. Bxe6 {[%emt 0:00:00]} fxe6 {[%emt 0:00:30]} 16. a4 {[%emt 0:01:00]} Rab8 {[%emt 0:00:30]} 17. axb5 {[%emt 0:00:00]} axb5 {[%emt 0:00:30]} 18. h3 {[%emt 0:00:00]} Rf7 {[%emt 0:00:30]} 19. Be3 {[%emt 0:00:00]} d5 {[%emt 0:00:30]} 20. Ra6 {[%emt 0:00:00]} Nd7 {[%emt 0:00:30]} 21. exd5 {[%emt 0:00:00]} exd5 {[%emt 0:00:00]} 22. Qb3 {[%emt 0:00:00]} c4 {[%emt 0:00:00]} 23. dxc4 {[%emt 0:00:00]} bxc4 {[%emt 0:01:30]} 24. Qa4 {[%emt 0:04:00]} Rf6 {[%emt 0:00:30]} 25. Rd1 {[%emt 0:00:00]} 1/2-1/2

[Event "2nd Serbian League-Vojvodina 2023"]
[Site "Novi Sad"]
[Date "2023.11.08"]
[Round "9.8"]
[White "Alimpic, Aleksa"]
[Black "Varga, Zoltan"]
[Result "1/2-1/2"]
[ECO "B07"]
[WhiteElo "2290"]
[BlackElo "2356"]
[Annotator "RC"]
[PlyCount "117"]
[EventDate "2023.10.22"]
[EventType "team-tourn"]
[EventCountry "SRB"]
[SourceTitle "playchess.com"]
[Source "ChessBase"]
[SourceQuality "1"]
[TimeControl "40/5400+30:1800+30"]

1. d4 {[%emt 0:00:03]} d6 {[%emt 0:00:06]} 2. e4 {[%emt 0:00:09]} Nf6 {[%emt 0:00:08]} 3. Nd2 {[%emt 0:00:09]} g6 {[%emt 0:00:28]} 4. Ngf3 {[%emt 0:00:20]} Bg7 {[%emt 0:00:04]} 5. Bb5+ {[%emt 0:00:19]} c6 {[%emt 0:00:17]} 6. Bd3 {[%emt 0:00:08]} Nh5 {[%emt 0:07:01]} 7. O-O {[%emt 0:05:12]} Nf4 {[%emt 0:00:15]} 8. Bc4 {[%emt 0:00:25]} d5 {[%emt 0:05:21]} 9. Bb3 {[%emt 0:02:53]} O-O {[%emt 0:01:25]} 10. Re1 {[%emt 0:01:34]} a5 {[%emt 0:01:13]} 11. a4 {[%emt 0:03:06]} Na6 {[%emt 0:02:06]} 12. Nf1 {[%emt 0:07:59]} dxe4 {[%emt 0:02:21]} 13. Rxe4 {[%emt 0:00:11]} Nd5 {[%emt 0:01:37]} 14. Bg5 {[%emt 0:04:13]} h6 {[%emt 0:06:37]} 15. Bd2 {[%emt 0:03:58]} Bf5 {[%emt 0:08:49]} 16. Re1 {[%emt 0:00:58]} Bg4 {[%emt 0:00:23]} 17. h3 {[%emt 0:04:07]} Bxf3 {[%emt 0:00:42]} 18. Qxf3 {[%emt 0:00:07]} e6 {[%emt 0:00:01]} 19. Rad1 {[%emt 0:03:22]} Kh7 {[%emt 0:08:22]} 20. c4 {[%emt 0:03:34]} Ne7 {[%emt 0:01:14]} 21. Bc3 {[%emt 0:06:38]} Qb6 {[%emt 0:03:21]} 22. Bc2 {[%emt 0:01:17]} Nb4 {[%emt 0:04:56]} 23. Bb1 {[%emt 0:00:48]} Rad8 {[%emt 0:00:43]} 24. c5 {[%emt 0:02:39]} Qc7 {[%emt 0:00:42]} 25. h4 {[%emt 0:01:20]} Nbd5 {[%emt 0:15:16]} 26. h5 {[%emt 0:04:04]} Qf4 {[%emt 0:04:24]} 27. Qh3 {[%emt 0:00:56]} Qg5 {[%emt 0:05:00]} 28. Bd2 {[%emt 0:09:17]} Nf4 {[%emt 0:02:17]} 29. Bxf4 {[%emt 0:00:18]} Qxf4 {[%emt 0:00:02]} 30. Re4 {[%emt 0:00:26]} Qf6 {[%emt 0:01:27]} 31. Ne3 {[%emt 0:07:29]} Kh8 {[%emt 0:19:22]} 32. g4 {[%emt 0:11:18]} Nd5 {[%emt 0:00:30]} 33. Nc4 {[%emt 0:00:44]} Qg5 {[%emt 0:00:00]} 34. hxg6 {[%emt 0:08:52]} f5 {[%emt 0:00:00]} 35. Re5 {[%emt 0:03:26]} Nf4 {[%emt 0:00:00]} 36. Qf3 {[%emt 0:00:27]} fxg4 {[%emt 0:00:00]} 37. Rxg5 {[%emt 0:00:11]} gxf3 {[%emt 0:00:00]} 38. Rg4 {[%emt 0:00:13]} Rxd4 {[%emt 0:00:00]} 39. Rxd4 {[%emt 0:00:19]} Bxd4 {[%emt 0:00:00]} 40. Nxa5 {[%emt 0:01:10]} h5 {[%emt 0:00:00]} 41. Rh4 {[%emt 0:30:48]} Bxc5 {[%emt 0:30:01]} 42. Nxb7 {[%emt 0:00:23]} Be7 {[%emt 0:00:03]} 43. Rh1 {[%emt 0:00:57]} Rb8 {[%emt 0:00:33]} 44. Na5 {[%emt 0:00:30]} Rxb2 {[%emt 0:00:38]} 45. Kh2 {[%emt 0:04:07]} h4 {[%emt 0:00:03]} 46. Rf1 {[%emt 0:00:07]} Bc5 {[%emt 0:00:54]} 47. Nc4 {[%emt 0:01:36]} Rb4 {[%emt 0:05:18]} 48. Ne5 {[%emt 0:00:13]} Rxa4 {[%emt 0:00:00]} 49. Nxf3 {[%emt 0:00:26]} Kg7 {[%emt 0:00:00]} 50. Rd1 {[%emt 0:00:44]} Nd5 {[%emt 0:00:15]} 51. Ng5 {[%emt 0:00:32]} Bd6+ {[%emt 0:01:07]} 52. Kh1 {[%emt 0:00:15]} Ra1 {[%emt 0:00:33]} 53. Nxe6+ {[%emt 0:00:17]} Kf6 {[%emt 0:00:34]} 54. Nd4 {[%emt 0:00:24]} Nc3 {[%emt 0:00:12]} 55. g7 {[%emt 0:01:04]} Kxg7 {[%emt 0:00:03]} 56. Nf5+ {[%emt 0:00:36]} Kf6 {[%emt 0:00:10]} 57. Rxd6+ {[%emt 0:00:05]} Ke5 {[%emt 0:00:07]} 58. Rxc6 {[%emt 0:00:20]} Rxb1+ {[%emt 0:00:27]} 59. Kg2 {[%emt 0:01:57]} 1/2-1/2

[Event "2nd Serbian League-Vojvodina 2023"]
[Site "Novi Sad"]
[Date "2023.11.08"]
[Round "9.9"]
[White "Strbac, Mladen"]
[Black "Pajcin, Lav"]
[Result "1/2-1/2"]
[ECO "B62"]
[WhiteElo "2246"]
[BlackElo "2109"]
[Annotator "RC"]
[PlyCount "51"]
[EventDate "2023.10.22"]
[EventType "team-tourn"]
[EventCountry "SRB"]
[SourceTitle "playchess.com"]
[Source "ChessBase"]
[SourceQuality "1"]
[TimeControl "40/5400+30:1800+30"]

1. e4 {[%emt 0:00:03]} c5 {[%emt 0:06:18]} 2. Nf3 {[%emt 0:00:10]} d6 {[%emt 0:01:14]} 3. d4 {[%emt 0:00:11]} cxd4 {[%emt 0:00:06]} 4. Nxd4 {[%emt 0:00:11]} Nf6 {[%emt 0:00:09]} 5. Nc3 {[%emt 0:00:07]} Nc6 {[%emt 0:00:06]} 6. Bg5 {[%emt 0:00:22]} e6 {[%emt 0:00:09]} 7. Qd3 {[%emt 0:00:35]} Be7 {[%emt 0:01:16]} 8. O-O-O {[%emt 1:32:51]} O-O {[%emt 0:00:48]} 9. h4 {[%emt 0:00:30]} Qb6 {[%emt 1:24:54]} 10. Nxc6 {[%emt 0:00:30]} bxc6 {[%emt 0:00:00]} 11. Qg3 {[%emt 0:00:00]} Rb8 {[%emt 0:01:00]} 12. b3 {[%emt 0:00:00]} Kh8 {[%emt 0:00:00]} 13. Kb1 {[%emt 0:01:30]} Qc5 {[%emt 0:00:00]} 14. Be2 {[%emt 0:00:00]} Rb4 {[%emt 0:01:30]} 15. f4 {[%emt 0:01:00]} d5 {[%emt 0:00:00]} 16. e5 {[%emt 0:00:00]} Ng8 {[%emt 0:00:00]} 17. Bxe7 {[%emt 0:00:00]} Nxe7 {[%emt 0:00:00]} 18. a3 {[%emt 0:00:00]} Rb8 {[%emt 0:00:00]} 19. Kb2 {[%emt 0:00:00]} Nf5 {[%emt 0:02:30]} 20. Qf3 {[%emt 0:00:00]} Nd4 {[%emt 0:00:00]} 21. Qd3 {[%emt 0:00:00]} Nxe2 {[%emt 0:00:00]} 22. Qxe2 {[%emt 0:00:00]} Qa5 {[%emt 0:00:00]} 23. Rh3 {[%emt 0:00:00]} c5 {[%emt 0:00:00]} 24. Qh5 {[%emt 0:00:00]} Qc7 {[%emt 0:00:00]} 25. Rg3 {[%emt 0:00:00]} Rg8 {[%emt 0:00:00]} 26. Qe2 {[%emt 0:05:30]} 1/2-1/2

[Event "2nd Serbian League-Vojvodina 2023"]
[Site "Novi Sad"]
[Date "2023.11.08"]
[Round "9.10"]
[White "Gagic, Milan A"]
[Black "Milanovic, Marko"]
[Result "1-0"]
[ECO "C84"]
[WhiteElo "2164"]
[BlackElo "2248"]
[Annotator "RC"]
[PlyCount "139"]
[EventDate "2023.10.22"]
[EventType "team-tourn"]
[EventCountry "SRB"]
[SourceTitle "playchess.com"]
[Source "ChessBase"]
[SourceQuality "1"]
[TimeControl "40/5400+30:1800+30"]

1. e4 {[%emt 0:00:01]} e5 {[%emt 0:00:17]} 2. Nf3 {[%emt 0:00:20]} Nc6 {[%emt 0:00:41]} 3. Bb5 {[%emt 0:00:13]} a6 {[%emt 0:00:32]} 4. Ba4 {[%emt 0:00:08]} Nf6 {[%emt 0:00:54]} 5. O-O {[%emt 0:00:06]} Be7 {[%emt 0:00:32]} 6. d3 {[%emt 0:00:06]} d6 {[%emt 0:01:59]} 7. c3 {[%emt 0:01:42]} O-O {[%emt 0:01:48]} 8. Re1 {[%emt 0:00:42]} b5 {[%emt 0:01:55]} 9. Bc2 {[%emt 0:00:06]} h6 {[%emt 0:03:07]} 10. Nbd2 {[%emt 0:01:18]} Re8 {[%emt 0:01:42]} 11. Nf1 {[%emt 0:01:20]} Bf8 {[%emt 0:02:03]} 12. d4 {[%emt 0:00:03]} Bg4 {[%emt 0:07:42]} 13. d5 {[%emt 0:05:07]} Ne7 {[%emt 0:06:30]} 14. h3 {[%emt 0:02:32]} Bd7 {[%emt 0:01:42]} 15. b3 {[%emt 0:13:47]} c6 {[%emt 0:04:34]} 16. c4 {[%emt 1:10:59]} cxd5 {[%emt 0:03:51]} 17. cxd5 {[%emt 0:00:00]} Rc8 {[%emt 0:01:59]} 18. Ng3 {[%emt 0:01:00]} g5 {[%emt 0:08:05]} 19. Nh2 {[%emt 0:00:30]} Ng6 {[%emt 0:05:44]} 20. Bd3 {[%emt 0:00:30]} Nf4 {[%emt 0:04:04]} 21. Bf1 {[%emt 0:00:30]} Rc7 {[%emt 0:11:32]} 22. Ng4 {[%emt 0:00:30]} Nh7 {[%emt 0:06:57]} 23. Ne3 {[%emt 0:00:00]} Qf6 {[%emt 0:03:34]} 24. a4 {[%emt 0:00:00]} Qg6 {[%emt 0:03:42]} 25. axb5 {[%emt 0:00:00]} axb5 {[%emt 0:00:29]} 26. Ra6 {[%emt 0:00:00]} Nf6 {[%emt 0:03:04]} 27. Ba3 {[%emt 0:00:00]} Nxe4 {[%emt 0:02:55]} 28. Nxe4 {[%emt 0:00:00]} Qxe4 {[%emt 0:00:05]} 29. Bxd6 {[%emt 0:00:00]} Bxd6 {[%emt 0:00:42]} 30. Rxd6 {[%emt 0:00:00]} Kg7 {[%emt 0:04:36]} 31. g3 {[%emt 0:00:00]} Ng6 {[%emt 0:02:49]} 32. Rxd7 {[%emt 0:00:00]} Rxd7 {[%emt 0:00:31]} 33. Bxb5 {[%emt 0:00:00]} Red8 {[%emt 0:00:55]} 34. Bxd7 {[%emt 0:00:00]} Rxd7 {[%emt 0:00:01]} 35. Qg4 {[%emt 0:00:00]} Qxg4 {[%emt 0:00:27]} 36. hxg4 {[%emt 0:00:00]} Kf6 {[%emt 0:02:02]} 37. Ra1 {[%emt 0:00:00]} Rd6 {[%emt 0:01:00]} 38. Ra7 {[%emt 0:00:00]} Ne7 {[%emt 0:01:45]} 39. Ra5 {[%emt 0:00:00]} Rb6 {[%emt 0:01:19]} 40. Nc4 {[%emt 0:00:00]} Rxb3 {[%emt 0:01:00]} 41. Ra6+ {[%emt 0:15:03]} Kg7 {[%emt 0:30:23]} 42. d6 {[%emt 0:00:05]} Ng6 {[%emt 0:00:58]} 43. d7 {[%emt 0:01:17]} Rb8 {[%emt 0:00:12]} 44. Rc6 {[%emt 0:03:26]} Rd8 {[%emt 0:00:44]} 45. Nb6 {[%emt 0:00:40]} Kf8 {[%emt 0:00:55]} 46. Kg2 {[%emt 0:01:05]} Ke7 {[%emt 0:00:31]} 47. Kf3 {[%emt 0:00:33]} f6 {[%emt 0:00:31]} 48. Ke4 {[%emt 0:01:06]} Nf8 {[%emt 0:00:34]} 49. Kf5 {[%emt 0:00:22]} Rb8 {[%emt 0:00:32]} 50. Rxf6 {[%emt 0:03:27]} Nxd7 {[%emt 0:00:23]} 51. Re6+ {[%emt 0:01:25]} Kd8 {[%emt 0:00:19]} 52. Nxd7 {[%emt 0:00:03]} Kxd7 {[%emt 0:00:01]} 53. Rxe5 {[%emt 0:00:17]} Rf8+ {[%emt 0:00:52]} 54. Kg6 {[%emt 0:00:05]} Rxf2 {[%emt 0:00:21]} 55. Kxh6 {[%emt 0:00:09]} Kd6 {[%emt 0:00:59]} 56. Rf5 {[%emt 0:01:37]} Rg2 {[%emt 0:00:30]} 57. Kxg5 {[%emt 0:00:59]} Rxg3 58. Rf1 {[%emt 0:00:25]} Ke6 {[%emt 0:00:47]} 59. Kh5 {[%emt 0:00:13]} Rg2 {[%emt 0:00:46]} 60. g5 {[%emt 0:00:17]} Rh2+ {[%emt 0:00:18]} 61. Kg6 {[%emt 0:00:04]} Ke7 {[%emt 0:00:42]} 62. Kg7 {[%emt 0:00:06]} Rg2 {[%emt 0:00:32]} 63. Re1+ {[%emt 0:00:03]} Kd7 {[%emt 0:00:13]} 64. g6 {[%emt 0:00:04]} Rg3 {[%emt 0:00:27]} 65. Kf7 {[%emt 0:00:05]} Rf3+ {[%emt 0:00:30]} 66. Kg8 {[%emt 0:00:04]} Rg3 {[%emt 0:00:25]} 67. g7 {[%emt 0:00:04]} Kd6 {[%emt 0:00:37]} 68. Rh1 {[%emt 0:00:17]} Ke7 {[%emt 0:00:35]} 69. Kh8 {[%emt 0:00:08]} Kf7 {[%emt 0:00:16]} 70. Rf1+ {[%emt 0:20:31]} 1-0

[Event "2nd Serbian League-Vojvodina 2023"]
[Site "Novi Sad"]
[Date "2023.11.08"]
[Round "9.11"]
[White "Levnajic, Pavle"]
[Black "Pavkov, Nebojsa"]
[Result "1-0"]
[ECO "D02"]
[WhiteElo "2160"]
[BlackElo "2199"]
[Annotator "RC"]
[PlyCount "95"]
[EventDate "2023.10.22"]
[EventType "team-tourn"]
[EventCountry "SRB"]
[SourceTitle "playchess.com"]
[Source "ChessBase"]
[SourceQuality "1"]
[TimeControl "40/5400+30:1800+30"]

1. d4 {[%emt 0:00:30]} Nf6 {[%emt 0:05:00]} 2. Nf3 {[%emt 0:00:05]} g6 {[%emt 0:00:42]} 3. Nbd2 {[%emt 0:01:22]} d5 {[%emt 0:00:37]} 4. b4 {[%emt 0:00:10]} Bg7 {[%emt 0:01:37]} 5. Bb2 {[%emt 0:00:32]} O-O {[%emt 0:00:37]} 6. e3 {[%emt 0:00:31]} b6 {[%emt 0:03:53]} 7. c4 {[%emt 0:01:10]} e6 {[%emt 0:00:53]} 8. Rc1 {[%emt 0:02:34]} Nfd7 {[%emt 0:02:50]} 9. cxd5 {[%emt 0:00:50]} exd5 {[%emt 0:00:05]} 10. Qb3 {[%emt 0:00:29]} Bb7 {[%emt 0:01:08]} 11. a4 {[%emt 0:01:31]} c6 {[%emt 0:04:21]} 12. Be2 {[%emt 0:00:31]} a5 {[%emt 0:04:01]} 13. bxa5 {[%emt 0:01:16]} Rxa5 {[%emt 0:00:23]} 14. Bc3 {[%emt 0:00:11]} Ra7 {[%emt 0:00:14]} 15. O-O {[%emt 0:00:54]} c5 {[%emt 0:10:35]} 16. Ra1 {[%emt 0:02:38]} c4 {[%emt 0:00:59]} 17. Qc2 {[%emt 0:00:50]} f5 {[%emt 0:03:23]} 18. Ne5 {[%emt 0:03:59]} Nxe5 {[%emt 0:01:47]} 19. dxe5 {[%emt 0:00:01]} Nd7 {[%emt 0:02:24]} 20. f4 {[%emt 0:00:41]} Bc6 {[%emt 0:08:11]} 21. Bb4 {[%emt 0:02:16]} Qa8 {[%emt 0:02:12]} 22. Bxf8 {[%emt 0:21:07]} Bxf8 {[%emt 0:00:13]} 23. Bf3 {[%emt 0:00:27]} Nc5 {[%emt 0:11:49]} 24. Rfb1 {[%emt 0:04:53]} Ne4 {[%emt 0:05:19]} 25. Bxe4 {[%emt 0:09:08]} fxe4 {[%emt 0:00:07]} 26. Qc3 {[%emt 0:01:47]} Bc5 {[%emt 0:03:57]} 27. Nf1 {[%emt 0:04:27]} Bxa4 {[%emt 0:07:15]} 28. e6 {[%emt 0:02:18]} Qc6 {[%emt 0:06:43]} 29. Qf6 {[%emt 0:05:21]} Qc7 {[%emt 0:10:36]} 30. f5 {[%emt 0:05:53]} gxf5 {[%emt 0:01:31]} 31. Qxf5 {[%emt 0:06:02]} Bc6 {[%emt 0:01:54]} 32. Rxa7 {[%emt 0:00:23]} Qxa7 {[%emt 0:00:08]} 33. Qg5+ {[%emt 0:02:27]} Qg7 {[%emt 0:00:05]} 34. Qd8+ {[%emt 0:00:24]} Qf8 {[%emt 0:00:12]} 35. Qc7 {[%emt 0:01:16]} Qe8 {[%emt 0:00:34]} 36. Qg3+ {[%emt 0:02:52]} Qg6 {[%emt 0:01:10]} 37. Qe5 {[%emt 0:01:48]} b5 {[%emt 0:00:49]} 38. Qb8+ {[%emt 0:05:24]} Qe8 {[%emt 0:00:33]} 39. Qg3+ {[%emt 0:01:10]} Kf8 {[%emt 0:00:36]} 40. Qh3 {[%emt 0:00:51]} Qg6 {[%emt 0:00:30]} 41. Nd2 {[%emt 0:30:31]} c3 {[%emt 0:30:29]} 42. Nb3 {[%emt 0:01:16]} Bb6 {[%emt 0:00:31]} 43. Rf1+ {[%emt 0:00:34]} Ke7 {[%emt 0:00:16]} 44. Nd4 {[%emt 0:02:00]} Bxd4 {[%emt 0:00:25]} 45. exd4 {[%emt 0:00:02]} b4 {[%emt 0:00:16]} 46. Rf7+ {[%emt 0:02:50]} Kd6 {[%emt 0:00:19]} 47. Qh4 {[%emt 0:00:17]} Qxe6 {[%emt 0:01:09]} 48. Qf4+ {[%emt 0:00:11]} 1-0

[Event "2nd Serbian League-Vojvodina 2023"]
[Site "Novi Sad"]
[Date "2023.11.08"]
[Round "9.12"]
[White "Cica, Dragan"]
[Black "Milanovic, Stanko"]
[Result "1-0"]
[ECO "B80"]
[WhiteElo "2125"]
[BlackElo "2115"]
[Annotator "RC"]
[PlyCount "75"]
[EventDate "2023.10.22"]
[EventType "team-tourn"]
[EventCountry "SRB"]
[SourceTitle "playchess.com"]
[Source "ChessBase"]
[SourceQuality "1"]
[TimeControl "40/5400+30:1800+30"]

1. e4 {[%emt 0:00:03]} c5 {[%emt 0:01:01]} 2. Nf3 {[%emt 0:00:20]} e6 {[%emt 0:00:53]} 3. d4 {[%emt 0:00:10]} cxd4 {[%emt 0:00:25]} 4. Nxd4 {[%emt 0:00:05]} Nf6 {[%emt 0:00:43]} 5. Bd3 {[%emt 0:00:11]} d6 {[%emt 0:00:09]} 6. Nc3 {[%emt 0:00:17]} a6 {[%emt 0:00:16]} 7. Be3 {[%emt 0:00:18]} Be7 {[%emt 0:01:05]} 8. f3 {[%emt 0:00:08]} Qc7 {[%emt 0:00:11]} 9. g4 {[%emt 0:00:53]} Nfd7 {[%emt 0:00:59]} 10. Qd2 {[%emt 0:00:42]} Nc6 {[%emt 0:04:24]} 11. O-O-O {[%emt 0:00:14]} b5 {[%emt 0:03:10]} 12. Rhe1 {[%emt 0:05:06]} O-O {[%emt 0:06:19]} 13. Nxc6 {[%emt 0:10:21]} Qxc6 {[%emt 0:00:11]} 14. e5 {[%emt 0:00:15]} b4 {[%emt 0:09:52]} 15. exd6 {[%emt 0:10:20]} bxc3 {[%emt 0:01:16]} 16. Qe2 {[%emt 0:00:14]} Bf6 {[%emt 0:02:07]} 17. b3 {[%emt 1:09:23]} Bb7 {[%emt 1:05:59]} 18. g5 {[%emt 0:00:30]} Bxg5 {[%emt 0:00:30]} 19. f4 {[%emt 0:00:30]} Bf6 {[%emt 0:00:30]} 20. Rg1 {[%emt 0:00:30]} Qf3 {[%emt 0:00:00]} 21. Qe1 {[%emt 0:00:30]} Qh5 {[%emt 0:01:00]} 22. Qf1 {[%emt 0:00:30]} Qxh2 {[%emt 0:00:00]} 23. Re1 {[%emt 0:00:30]} Rfd8 {[%emt 0:01:00]} 24. Rg4 {[%emt 0:00:30]} Nf8 {[%emt 0:00:30]} 25. f5 {[%emt 0:00:30]} Qxd6 {[%emt 0:00:30]} 26. fxe6 {[%emt 0:00:00]} Qa3+ {[%emt 0:00:00]} 27. Kd1 {[%emt 0:00:00]} Rxd3+ {[%emt 0:00:00]} 28. cxd3 {[%emt 0:00:00]} Qxa2 {[%emt 0:00:00]} 29. Qxf6 {[%emt 0:00:00]} Qxb3+ {[%emt 0:00:00]} 30. Ke2 {[%emt 0:00:00]} Qc2+ {[%emt 0:00:00]} 31. Kf1 {[%emt 0:00:00]} Nxe6 {[%emt 0:00:00]} 32. Qf5 {[%emt 0:00:00]} Rd8 {[%emt 0:00:00]} 33. Bd4 {[%emt 0:00:00]} Nxd4 {[%emt 0:00:00]} 34. Rxg7+ {[%emt 0:00:00]} Kxg7 {[%emt 0:00:00]} 35. Qg5+ {[%emt 0:00:00]} Kf8 {[%emt 0:00:00]} 36. Qxd8+ {[%emt 0:00:00]} Kg7 {[%emt 0:00:00]} 37. Qg5+ {[%emt 0:00:00]} Kf8 {[%emt 0:00:00]} 38. Qh6+ {[%emt 0:06:30]} 1-0

[Event "2nd Serbian League-Vojvodina 2023"]
[Site "Novi Sad"]
[Date "2023.11.08"]
[Round "9.13"]
[White "Balla, Tamas-Kristof"]
[Black "Somborski, Nebojsa"]
[Result "1/2-1/2"]
[ECO "D36"]
[WhiteElo "2308"]
[BlackElo "2266"]
[Annotator "RC"]
[PlyCount "25"]
[EventDate "2023.10.22"]
[EventType "team-tourn"]
[EventCountry "SRB"]
[SourceTitle "playchess.com"]
[Source "ChessBase"]
[SourceQuality "1"]
[TimeControl "40/5400+30:1800+30"]

1. d4 {[%emt 1:31:00]} d5 {[%emt 1:31:00]} 2. c4 {[%emt 0:00:30]} e6 {[%emt 0:00:30]} 3. Nc3 {[%emt 0:00:30]} Be7 {[%emt 0:00:30]} 4. Nf3 {[%emt 0:00:30]} Nf6 {[%emt 0:00:30]} 5. cxd5 {[%emt 0:00:30]} exd5 {[%emt 0:00:30]} 6. Bg5 {[%emt 0:00:30]} c6 {[%emt 0:00:30]} 7. Qc2 {[%emt 0:00:30]} g6 {[%emt 0:00:30]} 8. e3 {[%emt 0:00:30]} Bf5 {[%emt 0:00:30]} 9. Bd3 {[%emt 0:00:30]} Bxd3 {[%emt 0:00:30]} 10. Qxd3 {[%emt 0:00:30]} Nbd7 {[%emt 0:00:30]} 11. O-O {[%emt 0:00:30]} O-O {[%emt 0:00:30]} 12. Rab1 {[%emt 0:00:30]} a5 {[%emt 0:00:30]} 13. Nd2 {[%emt 0:00:30]} 1/2-1/2